bitfinex/quotes_SOLUSD_20250310
["timestamp","ask_amount","ask_price","bid_price","bid_amount"]
[1741572951553,43.89986524,128.33,128.29,87.5576813]
[1741572951867,5.8474886,128.33,128.29,95.3524813]
[1741572952171,5.8474886,128.33,128.3,56.7020255]
[1741572952464,5.8474886,128.33,128.32,56.7020255]
[1741572952653,5.8474886,128.33,128.32,18.64964886]
[1741572953055,5.8474886,128.33,128.3,18.64964886]
[1741572953255,5.8474886,128.33,128.3,60.53767564]
[1741572953675,43.89986524,128.33,128.3,18.64964886]
[1741572953867,5.8474886,128.33,128.3,18.64964886]
[1741572954176,5.8474886,128.33,128.29,197.6576813]
[1741572954466,5.8474886,128.33,128.29,87.5576813]
[1741572955250,38.05237664,128.32,128.27,460.15237664]
[1741572955551,38.05237664,128.31,128.28,7.46]
[1741572955755,45.84607664,128.31,128.27,117.56]
[1741572956269,45.84607664,128.31,128.27,110.1]
[1741572956563,39.64457664,128.3,128.27,110.1]
[1741572956866,38.05237664,128.29,128.26,193.26]
[1741572957764,47.43937664,128.3,128.26,193.26]
[1741572958065,38.05237664,128.27,128.25,110.163]
[1741572958364,1.5922,128.3,128.25,45.91247664]
[1741572958564,1.5922,128.3,128.27,56.7020255]
[1741572958747,1.5922,128.3,128.28,7.46]
[1741572958947,47.43887664,128.3,128.28,7.46]
[1741572959144,38.05237664,128.29,128.25,80.1606813]
[1741572959340,38.05237664,128.29,128.25,0.063]
[1741572960071,45.84727664,128.29,128.25,0.063]
[1741572960766,38.05237664,128.26,128.25,0.063]
[1741572960944,38.05237664,128.28,128.25,0.063]
[1741572961140,38.05237664,128.27,128.25,0.063]
[1741572961346,120.45237664,128.29,128.25,0.063]
[1741572961656,1.5922,128.3,128.26,38.05237664]
[1741572962163,1.5922,128.3,128.25,56.7650255]
[1741572962463,39.64457664,128.3,128.25,18.71264886]
[1741572962679,47.43877664,128.3,128.25,0.063]
[1741572962985,1.5922,128.3,128.25,0.063]
[1741572963151,39.64457664,128.3,128.25,38.11537664]
[1741572963344,1.5922,128.3,128.25,38.11537664]
[1741572963967,39.64457664,128.3,128.25,38.11537664]
[1741572964187,1.5922,128.3,128.26,56.7020255]
[1741572964362,1.5922,128.3,128.28,38.05237664]
[1741572965263,5.8474886,128.33,128.29,38.05237664]
[1741572965647,5.8474886,128.33,128.29,45.51237664]
[1741572965848,43.89986524,128.33,128.29,7.46]
[1741572966263,5.8474886,128.33,128.31,38.05237664]
[1741572966463,5.8474886,128.33,128.32,58.05237664]
[1741572966944,5.8474886,128.33,128.32,76.7020255]
[1741572967369,5.8474886,128.33,128.32,273.2863068]
[1741572967573,0.5,128.4,128.36,20.0]
[1741572967875,0.5,128.4,128.39,58.05237664]
[1741572968064,0.5,128.4,128.39,280.89832688]
[1741572968266,5.86103183,128.45,128.43,20.0]
[1741572968468,16.81986801,128.45,128.43,199.06]
[1741572968667,16.81986801,128.45,128.43,7.46]
[1741572968851,54.87224465,128.45,128.39,229.65237664]
[1741572969056,38.05237664,128.44,128.39,88.96]
[1741572969363,10.95883618,128.45,128.4,38.05237664]
[1741572969663,38.05237664,128.44,128.39,88.96]
[1741572970053,38.05237664,128.44,128.39,127.01237664]
[1741572970374,7.7845,128.46,128.39,127.01237664]
[1741572970569,38.05237664,128.44,128.39,88.96]
[1741572970774,38.05237664,128.43,128.39,88.96]
[1741572971084,38.05237664,128.44,128.39,7.46]
[1741572971279,38.05237664,128.43,128.39,7.46]
[1741572971968,38.05237664,128.42,128.39,7.46]
[1741572972181,38.05237664,128.4,128.38,185.7]
[1741572972367,38.05237664,128.42,128.37,38.05237664]
[1741572972572,1.6393,128.43,128.4,58.05237664]
[1741572972777,39.69167664,128.47,128.41,38.05237664]
[1741572972964,1.6393,128.47,128.42,18.64964886]
[1741572973152,0.5,128.48,128.46,38.05237664]
[1741572973363,2.6602386,128.53,128.47,26.10964886]
[1741572973551,2.6602386,128.53,128.51,38.05237664]
[1741572973866,2.6602386,128.53,128.5,20.0]
[1741572973867,2.6602386,128.53,128.52,45.51237664]
[1741572974174,2.6602386,128.53,128.52,53.29317664]
[1741572974386,3.86e-05,128.53,128.52,301.59520214]
[1741572974587,0.5,128.63,128.55,20.0]
[1741572974752,0.5,128.63,128.6,38.05237664]
[1741572974952,0.5,128.63,128.61,45.51237664]
[1741572975378,0.5,128.63,128.62,38.05237664]
[1741572975684,12.16205241,128.66,128.65,20.0]
[1741572976005,12.16205241,128.66,128.62,38.05237664]
[1741572976006,12.16205241,128.66,128.61,193.04]
[1741572976169,12.16205241,128.66,128.64,38.05237664]
[1741572976364,12.16205241,128.66,128.64,56.70314057]
[1741572976583,12.16205241,128.66,128.61,384.64]
[1741572976772,56.70314057,128.66,128.62,18.64964886]
[1741572976963,56.70314057,128.65,128.62,81.5]
[1741572977152,56.70314057,128.64,128.61,185.58]
[1741572977491,56.70314057,128.62,128.6,7.5]
[1741572977784,56.70314057,128.61,128.56,7.7]
[1741572977971,56.70314057,128.64,128.56,7.7]
[1741572978171,56.70314057,128.59,128.56,7.7]
[1741572978567,56.70314057,128.57,128.54,185.46]
[1741572978771,82.4,128.61,128.54,185.46]
[1741572979082,56.70314057,128.55,128.52,7.72]
[1741572979381,58.34244057,128.59,128.53,56.70314057]
[1741572979588,56.70314057,128.55,128.52,7.72]
[1741572979881,56.70314057,128.54,128.51,0.505]
[1741572980080,56.70314057,128.56,128.51,0.505]
[1741572980386,1.6393,128.59,128.55,56.70314057]
[1741572980682,56.70314057,128.62,128.56,64.46314057]
[1741572980868,82.4,128.64,128.56,7.76]
[1741572981061,82.4,128.64,128.59,56.70314057]
[1741572981275,58.34244057,128.65,128.6,56.70314057]
[1741572981466,22.5,128.7,128.62,56.70314057]
[1741572981778,22.5,128.7,128.66,56.70314057]
[1741572981965,22.5,128.7,128.66,64.50314057]
[1741572982376,22.5,128.7,128.67,56.70314057]
[1741572982592,22.5,128.7,128.69,56.70314057]
[1741572983684,22.5,128.7,128.68,330.64964886]
[1741572983867,22.5,128.7,128.67,191.6]
[1741572984272,56.70314057,128.69,128.66,193.22]
[1741572984467,56.70314057,128.69,128.66,185.42]
[1741572984662,56.70314057,128.68,128.62,84.92314057]
[1741572984863,56.70314057,128.66,128.62,8.22]
[1741572985563,22.5,128.7,128.68,81.5]
[1741572985769,22.5,128.7,128.69,268.89278943]
[1741572986364,6.92211839,128.7,128.69,524.96653]
[1741572986771,3.1602386,128.78,128.73,20.0]
[1741572986985,3.1602386,128.78,128.74,64.94314057]
[1741572987225,3.1602386,128.78,128.74,8.24]
[1741572987668,3.1602386,128.78,128.74,64.94314057]
[1741572987869,3.1602386,128.78,128.74,8.24]
[1741572988270,3.1602386,128.78,128.69,497.3]
[1741572988271,56.70314057,128.75,128.69,185.3]
[1741572988480,56.70314057,128.76,128.69,185.3]
[1741572988668,56.70314057,128.76,128.7,56.70314057]
[1741572988869,82.4,128.77,128.69,185.3]
[1741572989085,82.4,128.77,128.7,8.26]
[1741572989292,3.1602386,128.78,128.71,18.64964886]
[1741572989988,3.1602386,128.78,128.73,56.70314057]
[1741572990367,3.1602386,128.78,128.74,56.70314057]
[1741572990882,3.1602386,128.78,128.73,56.70314057]
[1741572991092,3.1602386,128.78,128.76,56.70314057]
[1741572991901,3.1602386,128.78,128.77,56.70314057]
[1741572993090,3.1602386,128.78,128.75,199.9]
[1741572993285,3.1602386,128.78,128.77,56.70314057]
[1741572993605,3.1602386,128.78,128.76,56.70314057]
[1741572993904,3.1602386,128.78,128.75,199.9]
[1741572993905,3.1602386,128.78,128.77,56.70314057]
[1741572994090,3.1602386,128.78,128.75,89.8]
[1741572994287,3.1602386,128.78,128.77,56.70314057]
[1741572994819,3.1602386,128.78,128.77,166.80314057]
[1741572994977,2.6602386,128.78,128.77,586.71848943]
[1741572995181,0.5,128.85,128.81,20.0]
[1741572995399,0.5,128.85,128.84,76.70314057]
[1741572996513,0.5,128.85,128.84,286.95278943]
[1741572996683,0.5,128.85,128.84,268.30314057]
[1741572997090,0.5,128.85,128.82,250.14314057]
[1741572997411,0.5,128.85,128.82,193.44]
[1741572997711,64.96414057,128.85,128.78,8.36]
[1741572998007,8.261,128.85,128.75,185.04]
[1741572998184,82.4,128.84,128.75,241.74314057]
[1741572998383,56.70314057,128.81,128.75,185.04]
[1741572998588,56.70314057,128.82,128.76,56.70314057]
[1741572998787,56.70314057,128.8,128.75,185.04]
[1741572998986,56.70314057,128.81,128.76,56.70314057]
[1741572999194,56.70314057,128.82,128.77,56.70314057]
[1741572999395,56.70314057,128.82,128.76,56.70314057]
[1741572999812,56.70314057,128.81,128.76,56.70314057]
[1741572999999,56.70314057,128.81,128.75,241.74314057]
[1741573000508,7.7639,128.8,128.75,241.74314057]
[1741573000697,64.46704057,128.8,128.75,185.04]
[1741573000892,56.70314057,128.78,128.75,185.04]
[1741573001092,56.70314057,128.78,128.71,199.96]
[1741573001294,56.70314057,128.78,128.71,8.36]
[1741573001693,56.70314057,128.78,128.72,56.70314057]
[1741573001894,56.70314057,128.78,128.73,56.70314057]
[1741573002198,56.70314057,128.79,128.73,56.70314057]
[1741573002407,76.11604057,128.78,128.72,56.70314057]
[1741573002609,56.70314057,128.77,128.71,56.70314057]
[1741573002792,76.11604057,128.78,128.72,56.70314057]
[1741573003288,7.7645,128.79,128.74,56.70314057]
[1741573003491,56.70314057,128.78,128.72,138.20314057]
[1741573003699,56.70314057,128.77,128.72,81.5]
[1741573003909,56.70314057,128.76,128.7,56.70314057]
[1741573004212,56.70314057,128.74,128.69,0.063]
[1741573004408,64.47074057,128.74,128.69,0.063]
[1741573004598,56.70314057,128.74,128.69,0.063]
[1741573004802,64.47084057,128.74,128.69,0.063]
[1741573005122,56.70314057,128.74,128.69,0.063]
[1741573005298,7.7665,128.76,128.69,56.76614057]
[1741573005724,64.46964057,128.76,128.7,56.70314057]
[1741573005907,56.70314057,128.75,128.69,56.76614057]
[1741573006106,56.70314057,128.74,128.69,0.063]
[1741573006309,56.70314057,128.75,128.69,56.76614057]
[1741573006508,7.7673,128.75,128.69,56.76614057]
[1741573006819,56.70314057,128.75,128.69,56.76614057]
[1741573007533,27.1801,128.77,128.69,0.063]
[1741573007819,56.70314057,128.74,128.69,0.063]
[1741573008618,64.47194057,128.72,128.69,0.063]
[1741573008788,56.70314057,128.72,128.69,0.063]
[1741573008996,64.47154057,128.73,128.69,0.063]
[1741573009493,56.70314057,128.73,128.69,0.063]
[1741573009688,56.70314057,128.75,128.69,56.76614057]
[1741573009915,56.70314057,128.76,128.7,56.70314057]
[1741573010105,56.70314057,128.74,128.69,191.663]
[1741573010310,56.70314057,128.72,128.69,191.663]
[1741573010621,56.70314057,128.71,128.69,0.063]
[1741573010994,56.70314057,128.7,128.69,0.063]
[1741573011693,114.94348114,128.7,128.66,0.505]
[1741573011913,56.70314057,128.67,128.66,0.505]
[1741573012301,58.24034057,128.7,128.66,0.505]
[1741573012502,56.70314057,128.67,128.66,0.505]
[1741573012703,66.01044057,128.7,128.66,0.505]
[1741573013015,56.70314057,128.68,128.66,0.505]
[1741573013808,56.70314057,128.67,128.66,0.505]
[1741573014004,56.70314057,128.68,128.66,0.505]
[1741573014611,56.70314057,128.67,128.66,0.505]
[1741573015399,1.5372,128.7,128.66,57.20814057]
[1741573015631,97.8831,128.75,128.69,56.70314057]
[1741573015924,66.00734057,128.75,128.7,8.36]
[1741573016219,56.70314057,128.74,128.7,8.36]
[1741573016697,7.7688,128.72,128.7,8.36]
[1741573017100,56.70314057,128.74,128.7,8.36]
[1741573017405,1.5372,128.75,128.7,65.06314057]
[1741573017601,1.5372,128.75,128.71,56.70314057]
[1741573018000,1.5372,128.75,128.7,65.06314057]
[1741573018206,58.24034057,128.75,128.7,65.06314057]
[1741573018401,1.5372,128.75,128.71,56.70314057]
[1741573018610,1.5372,128.75,128.72,56.70314057]
[1741573018821,64.46834057,128.78,128.72,56.70314057]
[1741573019146,62.88204057,128.79,128.73,56.70314057]
[1741573019433,1.5505,128.8,128.76,56.70314057]
[1741573019607,1.5505,128.8,128.77,8.44]
[1741573021009,9.3144,128.8,128.77,8.44]
[1741573021603,56.70314057,128.78,128.73,256.72314057]
[1741573021923,56.70314057,128.77,128.73,8.42]
[1741573022125,56.70314057,128.78,128.73,8.42]
[1741573022498,9.3144,128.8,128.73,8.42]
[1741573022499,56.70314057,128.76,128.73,8.42]
[1741573022704,56.70314057,128.77,128.73,8.42]
[1741573023113,7.7645,128.79,128.73,8.42]
[1741573023317,56.70314057,128.77,128.73,8.42]
[1741573023710,56.70314057,128.76,128.73,8.42]
[1741573023915,56.70314057,128.77,128.73,8.42]
[1741573024109,56.70314057,128.78,128.73,8.42]
[1741573024309,7.7645,128.79,128.73,8.42]
[1741573024522,56.70314057,128.78,128.73,8.42]
[1741573024748,56.70314057,128.77,128.73,8.42]
[1741573024925,56.70314057,128.76,128.73,8.42]
[1741573025131,56.70314057,128.75,128.73,8.42]
[1741573025316,56.70314057,128.77,128.73,8.42]
[1741573025505,56.70314057,128.76,128.7,56.70314057]
[1741573025706,56.70314057,128.76,128.71,8.4]
[1741573025925,56.70314057,128.77,128.71,65.10314057]
[1741573026122,146.86824057,128.78,128.72,56.70314057]
[1741573026319,56.70314057,128.79,128.73,56.70314057]
[1741573026627,66.01774057,128.8,128.74,56.70314057]
[1741573027526,9.3146,128.8,128.75,56.70314057]
[1741573027733,66.01774057,128.8,128.75,56.70314057]
[1741573027903,66.01774057,128.8,128.74,56.70314057]
[1741573028107,9.3146,128.8,128.75,56.70314057]
[1741573028322,1.5505,128.8,128.77,56.70314057]
[1741573028506,7.7627,128.82,128.77,56.70314057]
[1741573029010,64.46584057,128.82,128.76,65.10314057]
[1741573029513,7.7627,128.82,128.77,56.70314057]
[1741573030228,56.70314057,128.83,128.77,56.70314057]
[1741573030413,64.46544057,128.83,128.77,248.30314057]
[1741573030618,7.7623,128.83,128.78,56.70314057]
[1741573031422,64.46544057,128.83,128.78,56.70314057]
[1741573031611,7.7623,128.83,128.78,56.70314057]
[1741573032109,58.24374057,128.84,128.77,191.6]
[1741573032409,66.00534057,128.84,128.78,56.70314057]
[1741573032608,66.00534057,128.84,128.79,56.70314057]
[1741573033018,56.70314057,128.83,128.77,248.30314057]
[1741573033212,56.70314057,128.81,128.77,191.6]
[1741573033931,56.70314057,128.81,128.76,8.4]
[1741573034131,56.70314057,128.82,128.76,65.10314057]
[1741573034331,56.70314057,128.81,128.76,8.4]
[1741573035139,7.7639,128.8,128.76,8.4]
[1741573035513,7.7639,128.8,128.76,65.10314057]
[1741573035713,7.7639,128.8,128.77,56.70314057]
[1741573036135,56.70314057,128.83,128.78,56.70314057]
[1741573036318,1.5406,128.84,128.8,56.70314057]
[1741573036518,85.40924057,128.84,128.76,89.9]
[1741573036725,9.3022,128.84,128.79,56.70314057]
[1741573037328,56.70314057,128.83,128.77,56.70314057]
[1741573037645,9.3022,128.84,128.78,65.06314057]
[1741573037822,9.3022,128.84,128.79,56.70314057]
[1741573038018,66.00534057,128.84,128.78,65.06314057]
[1741573038743,0.5,128.85,128.82,56.70314057]
[1741573038921,1.5376,128.88,128.84,56.70314057]
[1741573039240,2.0376,128.93,128.87,56.70314057]
[1741573039422,2.0376,128.93,128.89,56.70314057]
[1741573039823,56.70314057,128.91,128.85,166.80314057]
[1741573040053,56.70314057,128.9,128.85,56.70314057]
[1741573040338,56.70314057,128.91,128.86,56.70314057]
[1741573040718,56.70314057,128.9,128.84,65.12314057]
[1741573041037,56.70314057,128.9,128.85,56.70314057]
[1741573041235,56.70314057,128.9,128.84,65.12314057]
[1741573041436,56.70314057,128.9,128.85,56.70314057]
[1741573041633,0.03,128.91,128.88,56.70314057]
[1741573042023,0.03,128.91,128.86,56.70314057]
[1741573042213,0.03,128.91,128.87,18.64964886]
[1741573042419,0.03,128.91,128.89,56.70314057]
[1741573042729,0.03,128.91,128.89,8.4]
[1741573043322,0.03,128.91,128.9,56.70314057]
[1741573043542,0.03,128.91,128.9,274.95528943]
[1741573043728,1.6025,129.02,128.92,152.05593]
[1741573043926,1.6025,129.02,128.98,56.70314057]
[1741573044127,2.6602386,129.04,129.0,56.70314057]
[1741573044635,2.6602386,129.04,129.0,223.50628114]
[1741573044816,2.6602386,129.04,129.01,18.64964886]
[1741573045022,2.6602386,129.04,129.03,56.70314057]
[1741573045242,2.6602386,129.04,129.03,241.62314057]
[1741573045439,2.6602386,129.04,129.03,351.72314057]
[1741573045949,2.6602386,129.04,129.03,508.57593]
[1741573046246,0.5,129.08,129.06,20.0]
[1741573046448,0.5,129.08,129.07,339.14964886]
[1741573046746,12.66205241,129.16,129.08,18.64964886]
[1741573046926,12.66205241,129.16,129.15,56.70314057]
[1741573047842,12.66205241,129.16,129.13,193.56]
[1741573048041,12.66205241,129.16,129.15,56.70314057]
[1741573048230,12.66205241,129.16,129.13,193.56]
[1741573048231,12.66205241,129.16,129.13,250.26314057]
[1741573048433,12.66205241,129.16,129.15,56.70314057]
[1741573048631,12.66205241,129.16,129.13,193.56]
[1741573048831,12.66205241,129.16,129.15,56.70314057]
[1741573049038,12.66205241,129.16,129.13,193.56]
[1741573049346,12.66205241,129.16,129.14,56.70314057]
[1741573049553,0.5,129.16,129.15,56.70314057]
[1741573049733,0.5,129.23,129.18,20.0]
[1741573049929,2.6602386,129.29,129.22,312.0]
[1741573050236,2.6602386,129.29,129.26,56.70314057]
[1741573050534,2.6602386,129.29,129.26,9.1]
[1741573050930,2.6602386,129.29,129.28,56.70314057]
[1741573051138,2.6602386,129.29,129.26,119.2]
[1741573051343,2.6602386,129.29,129.27,9.2]
[1741573051531,2.6602386,129.29,129.24,110.1]
[1741573051737,2.6602386,129.29,129.23,266.2]
[1741573051738,56.70314057,129.28,129.25,9.2]
[1741573051937,10.3947386,129.29,129.25,9.2]
[1741573052179,0.7,129.4,129.25,9.2]
[1741573052180,101.0,129.37,129.29,2.0]
[1741573052449,0.7,129.4,129.34,2.0]
[1741573052667,0.7,129.4,129.39,56.70314057]
[1741573052883,0.7,129.4,129.36,56.70314057]
[1741573053156,0.7,129.4,129.39,56.70314057]
[1741573053453,0.7,129.4,129.39,478.80314057]
[1741573053629,5.68232,129.4,129.39,478.80314057]
[1741573053835,5.68232,129.4,129.39,368.70314057]
[1741573054034,5.68232,129.4,129.39,312.0]
[1741573054330,5.68232,129.4,129.39,56.70314057]
[1741573054653,0.68232,129.4,129.39,166.80314057]
[1741573055033,0.68232,129.4,129.35,294.66]
[1741573055246,0.68232,129.4,129.35,241.26314057]
[1741573055448,0.68232,129.4,129.36,56.70314057]
[1741573055637,56.70314057,129.39,129.35,184.56]
[1741573055955,0.68232,129.4,129.36,56.70314057]
[1741573056265,0.68232,129.4,129.38,56.70314057]
[1741573056443,0.68232,129.4,129.39,56.70314057]
[1741573056649,8.41022,129.4,129.35,184.56]
[1741573056833,0.68232,129.4,129.35,241.26314057]
[1741573057154,113.40628114,129.36,129.28,0.063]
[1741573057359,56.70314057,129.33,129.28,0.063]
[1741573057539,56.70314057,129.31,129.28,0.063]
[1741573057741,18.64964886,129.34,129.28,0.063]
[1741573058040,56.70314057,129.31,129.28,0.063]
[1741573058248,56.70314057,129.29,129.28,0.063]
[1741573058544,75.35278943,129.29,129.26,0.505]
[1741573058735,56.70314057,129.28,129.26,0.505]
[1741573058930,18.64964886,129.29,129.26,0.505]
[1741573059258,7.7363,129.26,129.23,184.42]
[1741573059434,7.7363,129.26,129.19,57.20814057]
[1741573059435,56.70314057,129.25,129.19,57.20814057]
[1741573059765,56.70314057,129.23,129.19,0.505]
[1741573060073,27.0771,129.26,129.19,0.505]
[1741573060362,56.70314057,129.25,129.19,0.505]
[1741573060540,56.70314057,129.24,129.19,0.505]
[1741573060853,56.70314057,129.22,129.19,0.505]
[1741573061160,56.70314057,129.25,129.19,57.20814057]
[1741573061451,56.70314057,129.24,129.19,0.505]
[1741573061651,56.70314057,129.22,129.19,0.505]
[1741573061855,56.70314057,129.21,129.19,0.505]
[1741573062229,56.70314057,129.2,129.19,0.505]
[1741573062450,20.0,129.22,129.19,0.505]
[1741573062729,56.70314057,129.23,129.19,0.505]
[1741573062945,56.70314057,129.25,129.19,57.20814057]
[1741573063137,56.70314057,129.21,129.19,0.505]
[1741573063442,64.44304057,129.2,129.19,0.505]
[1741573063959,7.7399,129.2,129.19,0.505]
[1741573064339,56.70314057,129.21,129.19,0.505]
[1741573064673,56.70314057,129.2,129.19,0.505]
[1741573065253,7.7369,129.25,129.19,0.505]
[1741573065553,56.70314057,129.21,129.19,0.505]
[1741573065929,56.70314057,129.2,129.19,0.505]
[1741573066639,56.70314057,129.2,129.19,0.568]
[1741573067045,75.35278943,129.2,129.19,0.0001]
[1741573067354,27.0939,129.18,129.11,10.385]
[1741573067537,56.70314057,129.16,129.11,10.385]
[1741573067738,56.70314057,129.15,129.11,0.505]
[1741573067947,83.79704057,129.18,129.11,0.505]
[1741573067948,56.70314057,129.13,129.11,0.505]
[1741573068442,56.70314057,129.12,129.11,0.505]
[1741573069337,64.44784057,129.12,129.11,0.505]
[1741573070661,83.80964057,129.12,129.06,0.063]
[1741573070862,56.70314057,129.09,129.06,0.063]
[1741573071057,56.70314057,129.08,129.06,0.063]
[1741573071358,64.45084057,129.07,129.06,0.063]
[1741573071560,7.7453,129.11,129.06,0.063]
[1741573071860,56.70314057,129.07,129.06,0.063]
[1741573072358,56.70314057,129.07,129.04,0.505]
[1741573072559,27.1086,129.11,129.04,57.20814057]
[1741573072767,7.7441,129.13,129.1,56.70314057]
[1741573073068,1.5793,129.14,129.11,56.70314057]
[1741573073245,9.3229,129.14,129.04,120.465]
[1741573073453,1.5793,129.14,129.06,56.70314057]
[1741573073765,58.28244057,129.14,129.08,56.70314057]
[1741573074063,58.28244057,129.14,129.04,322.365]
[1741573074274,56.70314057,129.12,129.07,56.70314057]
[1741573074455,56.70314057,129.12,129.06,56.70314057]
[1741573075060,56.70314057,129.13,129.07,56.70314057]
[1741573075646,1.5793,129.14,129.1,56.70314057]
[1741573075879,9.3228,129.14,129.09,56.70314057]
[1741573076044,56.70314057,129.13,129.07,56.70314057]
[1741573076766,1.5793,129.14,129.1,56.70314057]
[1741573076963,56.70314057,129.19,129.13,56.70314057]
[1741573077139,9.2957,129.2,129.13,56.70314057]
[1741573077361,1.5557,129.2,129.14,56.70314057]
[1741573077539,1.5557,129.2,129.15,56.70314057]
[1741573077842,58.25884057,129.2,129.15,56.70314057]
[1741573078045,1.5557,129.2,129.17,56.70314057]
[1741573078283,0.5,129.23,129.19,56.70314057]
[1741573078451,57.20314057,129.23,129.17,56.70314057]
[1741573078768,56.70314057,129.21,129.16,66.58314057]
[1741573079076,56.70314057,129.21,129.16,9.88]
[1741573079366,56.70314057,129.19,129.13,56.70314057]
[1741573079566,56.70314057,129.18,129.12,251.10314057]
[1741573079778,56.70314057,129.16,129.12,194.4]
[1741573079945,27.0876,129.21,129.12,184.52]
[1741573080141,18.64964886,129.2,129.12,241.22314057]
[1741573080345,56.70314057,129.17,129.12,184.52]
[1741573080577,18.67964886,129.2,129.12,241.22314057]
[1741573080758,56.70314057,129.17,129.12,184.52]
[1741573080955,0.03,129.2,129.15,56.70314057]
[1741573081158,0.03,129.2,129.18,56.70314057]
[1741573081545,0.03,129.2,129.16,56.70314057]
[1741573081747,0.03,129.2,129.14,9.9]
[1741573082157,56.70314057,129.15,129.12,184.52]
[1741573082559,56.70314057,129.14,129.12,184.52]
[1741573082769,56.70314057,129.13,129.12,184.52]
[1741573083266,101.04964886,129.17,129.12,184.52]
[1741573083491,56.70314057,129.13,129.12,184.52]
[1741573083650,9.2583,129.15,129.12,184.52]
[1741573083958,58.21844057,129.15,129.12,184.52]
[1741573084156,2e-05,129.31,129.28,2.0]
[1741573084482,1.5153,129.47,129.32,20.0]
[1741573084824,58.21844057,129.47,129.37,56.70314057]
[1741573084957,1.5153,129.47,129.37,66.80314057]
[1741573085164,1.5153,129.47,129.37,378.80314057]
[1741573085379,1.5153,129.47,129.37,570.90628114]
[1741573085553,1.5153,129.47,129.38,10.14]
[1741573085747,1.5153,129.47,129.42,56.70314057]
[1741573085948,56.70314057,129.43,129.36,10.12]
[1741573086152,0.5,129.46,129.36,17.8502]
[1741573086383,0.5,129.46,129.42,56.70314057]
[1741573086756,64.92754057,129.46,129.36,202.22314057]
[1741573086994,56.70314057,129.42,129.36,10.12]
[1741573087192,56.70314057,129.38,129.29,4.03859889]
[1741573087355,56.70314057,129.38,129.31,56.70314057]
[1741573087554,20.0,129.39,129.29,14.23859889]
[1741573087782,20.0,129.39,129.32,56.70314057]
[1741573088373,56.70314057,129.33,129.29,4.03859889]
[1741573088585,56.70314057,129.31,129.29,4.03859889]
[1741573088776,56.70314057,129.3,129.29,4.03859889]
[1741573089391,56.70314057,129.31,129.29,4.03859889]
[1741573089706,20.0,129.31,129.29,4.03859889]
[1741573090211,56.70314057,129.3,129.29,2.37199889]
[1741573090692,56.70314057,129.3,129.26,0.505]
[1741573090868,56.70314057,129.27,129.26,0.505]
[1741573091589,64.43884057,129.27,129.26,0.505]
[1741573091809,7.7357,129.27,129.26,0.505]
[1741573091971,64.43884057,129.27,129.26,0.505]
[1741573093892,7.734,129.3,129.26,0.505]
[1741573094080,56.70314057,129.27,129.26,0.505]
[1741573095278,56.73314057,129.31,129.26,0.505]
[1741573095481,56.73314057,129.31,129.26,57.20814057]
[1741573095984,0.03,129.31,129.26,0.505]
[1741573096189,56.70314057,129.3,129.26,0.505]
[1741573096389,56.73314057,129.31,129.26,0.505]
[1741573096589,0.03,129.31,129.27,56.70314057]
[1741573096783,0.03,129.31,129.3,56.70314057]
[1741573097220,0.03,129.31,129.29,10.16]
[1741573097711,56.73314057,129.31,129.26,57.20814057]
[1741573097926,0.03,129.31,129.26,57.20814057]
[1741573098214,56.70314057,129.29,129.26,0.505]
[1741573098508,56.70314057,129.28,129.26,0.505]
[1741573098677,64.46654057,129.31,129.26,0.505]
[1741573098876,0.03,129.31,129.26,57.20814057]
[1741573099105,0.03,129.31,129.27,56.70314057]
[1741573099310,56.73314057,129.31,129.26,57.20814057]
[1741573099512,56.70314057,129.3,129.26,0.505]
[1741573099695,64.43764057,129.29,129.26,0.505]
[1741573100311,56.70314057,129.3,129.26,0.505]
[1741573100606,64.43714057,129.3,129.26,0.505]
[1741573100899,64.46654057,129.31,129.26,0.505]
[1741573101404,56.70314057,129.3,129.26,0.505]
[1741573101785,64.43724057,129.3,129.26,0.505]